Cogmind - Beta 13 @@@ ROGUE MODE // 2024.03.27 @ 17:43:20 Player: Desymo99 Result: Escaped! Performance ------------- Evolutions (9) 4500 Regions Visited (15) 3000 Robots Destroyed (42) 210 Value Destroyed (822) 822 Prototype IDs (12) 240 Alien Tech Used (3) 600 Bonus (3508) 3508 TOTAL SCORE: 12880 Bonus ------- High Alert Combat Kills 8 Entered DSFs 500 Win 3000 Cogmind --------- Core Integrity 889/1600 Matter 164/300 Energy 348/350 System Corruption 10% Temperature Cool (6) Movement Flying (34) Location To Epsilon Eridani Parts ------- > --- POWER (2) -------- Quantum Reactor > --- PROPULSION (7) --- Field Propulsion Array Field Propulsion Array Q-thruster > --- UTILITY (14) ----- Advanced Gravity Neutralizer Triangulator Advanced Signal Interpreter Advanced Terrain Scan Processor Advanced Melee Analysis Suite Transmission Jammer Experimental Reaction Control System Experimental Focal Shield Hacking Suite Improved Hacking Suite Advanced Hacking Suite Microwarp Drive > --- WEAPON (2) ------- Lance > --- INVENTORY (5) ---- Quantum Reactor Light Quantum Reactor Q-thruster Advanced Force Field Energy Mantle Peak State ------------ > --- POWER ------------ Quantum Reactor Light Quantum Reactor > --- PROPULSION ------- Field Propulsion Array Field Propulsion Array Q-thruster Impulse Thruster Array > --- UTILITY ---------- Advanced Gravity Neutralizer Triangulator Advanced Signal Interpreter Advanced Terrain Scan Processor Advanced Melee Analysis Suite Transmission Jammer Experimental Reaction Control System Experimental Focal Shield Energy Mantle Hacking Suite Improved Hacking Suite Advanced Hacking Suite Microwarp Drive > --- WEAPON ----------- Lance > --- INVENTORY -------- Quantum Reactor Light Quantum Reactor Q-thruster Advanced Force Field [Rating: 179] Favorites ----------- Power Light Fission Core Engine Ion Engine Power Core Light Fission Core Reactor Quantum Reactor Propulsion Cesium-ion Thruster Wheel Compact Wheel Flight Unit Cesium-ion Thruster Utility Hacking Suite Device Advanced Sensor Array Storage Small Storage Unit Processor Advanced Signal Interpreter Hackware Hacking Suite Artifact Microwarp Drive Weapon Mace Energy Cannon Matter Neutralizer Ballistic Gun Light Assault Rifle Special Weapon Remote Datajack Impact Weapon Mace Slashing Weapon Scythe Piercing Weapon Lance Special Melee Weapon Advanced Datajack Build | -11 -10 -9 -8 -7 -6 -5 -5 -5 -4 -4 -3 -2 -2 -2 -1 ------- Run | Yrd Mat Mat Mat Fac Fac Fac Upp Upp Fac DSF Res Res Tes Sec Acc Slots Evolved 18 | . . 2 2 2 2 2 . . 2 . 2 2 . . 2 Power 1 | . . . . 1 . . . . . . . . . . . Propulsion 5 | . . 2 . 1 . . . . . . 1 . . . 1 Utility 12 | . . . 2 . 2 2 . . 2 . 1 2 . . 1 Weapon . | . . . . . . . . . . . . . . . . Parts Attached 136 | 7 6 10 15 6 24 6 3 1 4 3 8 16 5 6 16 Power 30 | 1 1 2 2 1 8 . . . . 3 1 4 . 1 6 Engine 9 | 1 1 2 2 1 2 . . . . . . . . . . Core 8 | . . . . . 5 . . . . 3 . . . . . Reactor 13 | . . . . . 1 . . . . . 1 4 . 1 6 Propulsion 30 | 2 1 5 4 . 5 . . . . . 3 4 . 2 4 Treads . | . . . . . . . . . . . . . . . . Leg . | . . . . . . . . . . . . . . . . Wheel 3 | 2 1 . . . . . . . . . . . . . . Hover . | . . . . . . . . . . . . . . . . Flight 27 | . . 5 4 . 5 . . . . . 3 4 . 2 4 Utility 47 | 2 2 1 2 3 9 4 1 . 1 . 3 7 4 3 5 Device 32 | 1 1 1 2 2 5 4 . . . . 1 5 4 2 4 Storage 1 | 1 . . . . . . . . . . . . . . . Processor 6 | . 1 . . . 1 . 1 . . . 1 2 . . . Hackware 7 | . . . . 1 3 . . . 1 . 1 . . . 1 Protection . | . . . . . . . . . . . . . . . . Artifact 1 | . . . . . . . . . . . . . . 1 . Weapon 29 | 2 2 2 7 2 2 2 2 1 3 . 1 1 1 . 1 Energy Gun . | . . . . . . . . . . . . . . . . Energy Cannon 1 | . . . . . . . 1 . . . . . . . . Ballistic Gun 12 | 2 1 2 4 . . 1 . 1 1 . . . . . . Ballistic Cannon . | . . . . . . . . . . . . . . . . Launcher . | . . . . . . . . . . . . . . . . Special Weapon 5 | . . . . . 1 1 1 . . . 1 . 1 . . Impact Weapon 5 | . 1 . 3 1 . . . . . . . . . . . Slashing Weapon 4 | . . . . 1 1 . . . 1 . . 1 . . . Piercing Weapon 1 | . . . . . . . . . . . . . . . 1 Special Melee Weapon 1 | . . . . . . . . . 1 . . . . . . Unidentified Prototypes 14 | . . 1 . . 1 1 . . 1 . 1 3 2 3 1 Parts Lost 23 | . 1 1 . . 3 . 2 . . 1 3 . 1 1 10 Power 5 | . . . . . . . . . . 1 1 . . . 3 Propulsion 7 | . 1 . . . 1 . 1 . . . . . . 1 3 Utility 8 | . . 1 . . 1 . 1 . . . 1 . 1 . 3 Weapon 3 | . . . . . 1 . . . . . 1 . . . 1 Highest Loss Streak 5 | . 1 1 . . 3 . 1 . . 1 2 . 1 1 5 To Critical Strikes . | . . . . . . . . . . . . . . . . Average Slot Usage (%) 91 | . 99 100 86 83 97 95 99 88 84 86 84 79 81 77 73 Engine 2 | . 14 11 9 7 . . . . . . . . . . . Core 5 | . . . . . 10 11 11 11 10 7 5 . . . . Reactor 1 | . . . . . . . . . . . 2 7 8 8 7 Wheel 2 | . 27 . . . . . . . . . . . . . . Flight 22 | . . 44 36 30 31 29 28 23 21 21 15 12 13 13 13 Device 17 | . 14 11 14 15 12 23 23 23 21 21 19 21 25 17 20 Processor 8 | . 12 11 9 7 6 5 5 5 5 5 8 12 13 13 12 Hackware 14 | . . . . 6 20 17 17 17 20 21 22 17 17 17 12 Ballistic Gun 3 | . 23 18 13 1 . . . . . . . . . . . Impact Weapon 4 | . 4 3 4 6 6 5 5 5 5 5 4 1 . . . Slashing Weapon 2 | . . . . 5 5 . . . . . . 4 4 4 2 Naked Turns . | . . . . . . . . . . . . . . . . Heaviest Build 68 | 12 12 14 19 18 24 25 23 20 21 21 30 60 61 63 68 Greatest Support 70 | 26 32 20 20 20 26 26 26 21 21 21 48 64 64 64 70 Greatest Overweight (x) 1 | . . . . . . . 1 . . . . 1 . . 1 Average Overweight (x) . | . . . . . . . . . . . . . . . . Largest Inventory Capacity 8 | 8 8 5 5 5 5 5 5 5 5 5 5 5 5 5 5 Average Capacity 5 | 7 5 5 5 5 5 5 5 5 5 5 5 5 5 5 5 Most Carried 8 | 8 8 5 5 5 5 5 5 5 5 5 5 5 5 5 5 Average Carried 4 | 3 5 4 4 4 4 4 3 5 4 5 5 4 4 4 3 Final Capacity 8 | 8 5 5 5 5 5 5 5 5 5 5 5 5 5 5 5 Final Carried 8 | 8 5 4 5 5 5 4 5 5 5 5 5 5 5 5 5 Class Distribution -------------------- 34% | Hacker-Ninja 21% | Hacker-Scout 11% | Hacker-Mutant 10% | Hacker-Sprinter 9% | Sprinter 8% | Mutant Dominant Class ---------------- Mutant | -10/Materials Sprinter | -9/Materials Sprinter | -8/Materials Sprinter | -7/Factory Hacker-Scout | -6/Factory Hacker-Ninja | -5/Factory Hacker-Ninja | -5/Upper Caves Hacker-Ninja | -5/Upper Caves Hacker-Ninja | -4/Factory Hacker-Ninja | -4/DSF Hacker-Ninja | -3/Research Hacker-Ninja | -2/Research Hacker-Ninja | -2/Testing Hacker-Mutant | -2/Section 7 Hacker-Mutant | -1/Access Resources | -11 -10 -9 -8 -7 -6 -5 -5 -5 -4 -4 -3 -2 -2 -2 -1 ----------- Run | Yrd Mat Mat Mat Fac Fac Fac Upp Upp Fac DSF Res Res Tes Sec Acc Matter Collected 1779 | 278 164 245 36 30 527 . 95 10 . 8 25 173 67 113 8 Remotely . | . . . . . . . . . . . . . . . . Salvage Created 1615 | 99 428 296 110 30 489 . 23 . . . . . . 140 . Parts 103 | 7 30 23 5 4 34 . . . . . . . . . . Haulers Intercepted 4 | . 1 1 . . 2 . . . . . . . . . . Recyclers Shooed 1 | . 1 . . . . . . . . . . . . . . Parts Field Recycled . | . . . . . . . . . . . . . . . . Retrieved Matter . | . . . . . . . . . . . . . . . . Parts Self-Destructed 8 | . . . . . . . 7 1 . . . . . . . Prevented 2 | . . . . . . . . 2 . . . . . . . Kills | -11 -10 -9 -8 -7 -6 -5 -5 -5 -4 -4 -3 -2 -2 -2 -1 ------- Run | Yrd Mat Mat Mat Fac Fac Fac Upp Upp Fac DSF Res Res Tes Sec Acc Combat Hostiles Destroyed 21 | . 6 9 3 . 3 . . . . . . . . . . Melee 3 | . . . . . 3 . . . . . . . . . . Guns 18 | . 6 9 3 . . . . . . . . . . . . Classes Destroyed 10 | 2 5 . . . 2 . 1 . . . . . . . . Worker 3 | . . . . . 3 . . . . . . . . . . Tunneler 1 | 1 . . . . . . . . . . . . . . . Hauler 4 | . 1 1 . . 2 . . . . . . . . . . Recycler 5 | 1 2 . 1 . . . . . . . . . . 1 . Minesweeper 1 | . . . . . . . 1 . . . . . . . . Operator 4 | . 1 . . 1 2 . . . . . . . . . . Watcher 3 | . 2 . . . 1 . . . . . . . . . . Swarmer 12 | . 3 6 3 . . . . . . . . . . . . Grunt 6 | . 3 3 . . . . . . . . . . . . . Programmer 3 | . . . . . 3 . . . . . . . . . . Best Kill Streak 6 | 2 2 6 3 1 2 . 1 . . . . . . 1 . Combat Bots Only 5 | . 2 5 2 . 1 . . . . . . . . . . Max Kills in Single Turn 2 | 1 1 2 1 1 1 . 1 . . . . . . 1 . Gunslinging . | . . . . . . . . . . . . . . . . Exploded . | . . . . . . . . . . . . . . . . Melee 1 | . . . . . 1 . . . . . . . . . . Uniques/NPCs Destroyed . | . . . . . . . . . . . . . . . . Combat | -11 -10 -9 -8 -7 -6 -5 -5 -5 -4 -4 -3 -2 -2 -2 -1 -------- Run | Yrd Mat Mat Mat Fac Fac Fac Upp Upp Fac DSF Res Res Tes Sec Acc Hostile Shots Fired 397 | . 28 63 32 . 10 . 4 . . 3 78 2 34 4 139 Missed 185 | . 5 27 7 . 5 . 1 . . 1 41 1 18 2 77 Damage Taken 4350 | . 238 367 202 . 453 . 64 . . 79 815 14 132 87 1899 Core 1348 | . 41 103 55 . 85 . . . . 19 310 . 24 . 711 Absorbed by Shields 454 | . . . . . . . . . . . . 13 125 . 316 Ignored by Resistances 65 | . . . . . . . . . . . . . 65 . . Regen/Repaired (Parts) 9 | . . . . . 9 . . . . . . . . . . Core Remaining (%) 87 | 100 83 74 90 100 90 . . 100 . 98 76 . . 98 55 Volleys Fired 83 | 2 47 19 10 . 2 1 1 . . . . . 1 . . Largest 2 | 2 2 2 2 . 1 1 1 . . . . . 1 . . Hottest 56 | 40 40 46 56 . 5 5 5 . . . . . 10 . . Shots Fired 141 | 4 76 38 18 . 2 1 1 . . . . . 1 . . Gun 136 | 4 76 38 18 . . . . . . . . . . . . Cannon . | . . . . . . . . . . . . . . . . Launcher . | . . . . . . . . . . . . . . . . Special 5 | . . . . . 2 1 1 . . . . . 1 . . Kinetic 136 | 4 76 38 18 . . . . . . . . . . . . Thermal . | . . . . . . . . . . . . . . . . Explosive . | . . . . . . . . . . . . . . . . Electromagnetic . | . . . . . . . . . . . . . . . . Robot Hit Streak 7 | 2 7 6 3 . 4 5 6 . . . . . 7 . . Robot Miss Streak 4 | . 3 4 2 . . . . . . . . . . . . Penetration Max 1 | . . . 1 . . . . . . . . . . . . Secondary Targets . | . . . . . . . . . . . . . . . . Shots Hit Robots 114 | 2 48 20 9 1 17 1 2 . 1 1 1 . 1 9 1 Core Hits 47 | 2 22 10 4 . 8 . . . . . . . . 1 . Critical Kills . | . . . . . . . . . . . . . . . . Critical Parts Destroyed 1 | . 1 . . . . . . . . . . . . . . Critical Strikes 3 | . 1 . . . . . . . . . . . . 2 . Destroy 1 | . 1 . . . . . . . . . . . . . . Sever 2 | . . . . . . . . . . . . . . 2 . Melee Attacks 325 | . . . 5 34 113 18 14 1 4 6 22 28 7 19 54 Impact 164 | . . . 5 25 70 18 14 1 3 5 21 2 . . . Slashing 133 | . . . . 9 43 . . . . . . 26 7 19 29 Piercing 25 | . . . . . . . . . . . . . . . 25 Sneak Attacks 13 | . . . . 1 6 . 1 . 1 1 1 . . 2 . Combat Hostiles 1 | . . . . . . . . . . 1 . . . . . Follow-up Attacks . | . . . . . . . . . . . . . . . . Damage Inflicted 2400 | 26 517 324 212 82 710 . 88 . . . . . . 409 32 Guns 1079 | 26 517 324 212 . . . . . . . . . . . . Cannons . | . . . . . . . . . . . . . . . . Explosions . | . . . . . . . . . . . . . . . . Melee 1321 | . . . . 82 710 . 88 . . . . . . 409 32 Ramming . | . . . . . . . . . . . . . . . . Kinetic 1079 | 26 517 324 212 . . . . . . . . . . . . Thermal . | . . . . . . . . . . . . . . . . Explosive . | . . . . . . . . . . . . . . . . Electromagnetic . | . . . . . . . . . . . . . . . . Impact 294 | . . . . . 206 . 88 . . . . . . . . Slashing 1027 | . . . . 82 504 . . . . . . . . 409 32 Piercing . | . . . . . . . . . . . . . . . . Highest Corruption 12 | . 2 . . . 12 . . . . . 5 . . 2 10 Average Corruption 4 | . 2 . . . 4 . . . . . 2 . . 2 3 Corruption Purged 3 | . . . . . 3 . . . . . . . . . . Corruption Blocked . | . . . . . . . . . . . . . . . . Effects 43 | . 4 . . . 29 . . . . . 1 . . . 9 Message Errors 8 | . . . . . 6 . . . . . . . . . 2 Matter Fused 10 | . 1 . . . 9 . . . . . . . . . . Heat Flow Errors 2 | . . . . . . . . . . . . . . . 2 Energy Discharges 10 | . 3 . . . 5 . . . . . 1 . . . 1 Data Loss (minor) 6 | . . . . . 5 . . . . . . . . . 1 Data Loss (major) 4 | . . . . . 3 . . . . . . . . . 1 Alerts 3 | . . . . . 1 . . . . . . . . . 2 Overload Shots . | . . . . . . . . . . . . . . . . Overflow Damage 177 | . . . . 62 70 . 3 . . . . . . 42 . Projectiles . | . . . . . . . . . . . . . . . . Explosions . | . . . . . . . . . . . . . . . . Melee 177 | . . . . 62 70 . 3 . . . . . . 42 . Knockbacks 1 | . . . . . . . 1 . . . . . . . . Impact 1 | . . . . . . . 1 . . . . . . . . Kinetic . | . . . . . . . . . . . . . . . . Secondary . | . . . . . . . . . . . . . . . . Self-Inflicted Damage . | . . . . . . . . . . . . . . . . Shots . | . . . . . . . . . . . . . . . . Rammed . | . . . . . . . . . . . . . . . . Targets Rammed . | . . . . . . . . . . . . . . . . Kicked . | . . . . . . . . . . . . . . . . Crushed . | . . . . . . . . . . . . . . . . Highest Temperature 207 | . 18 7 5 . 207 24 108 . . . . . . . 194 Average Temperature 42 | . 9 2 3 . 51 7 28 . . . . . . . 91 Received Heat Transfer 196 | . 72 57 9 . 18 . 18 . . . 9 . . . 13 Siege Activations . | . . . . . . . . . . . . . . . . Robots Corrupted . | . . . . . . . . . . . . . . . . Combat Hostiles . | . . . . . . . . . . . . . . . . Parts Fried 2 | . . . . . 1 . 1 . . . . . . . . Impact Corruptions 5 | . . . . . 4 . 1 . . . . . . . . Robots Melted . | . . . . . . . . . . . . . . . . Combat Hostiles . | . . . . . . . . . . . . . . . . Parts Melted . | . . . . . . . . . . . . . . . . Heat Transferred . | . . . . . . . . . . . . . . . . Parts Sabotaged . | . . . . . . . . . . . . . . . . Parts Stolen . | . . . . . . . . . . . . . . . . Parts Stripped . | . . . . . . . . . . . . . . . . Power Chain Reactions . | . . . . . . . . . . . . . . . . Alert | -11 -10 -9 -8 -7 -6 -5 -5 -5 -4 -4 -3 -2 -2 -2 -1 ------- Run | Yrd Mat Mat Mat Fac Fac Fac Upp Upp Fac DSF Res Res Tes Sec Acc Peak Influence 665 | 10 192 665 554 308 187 71 . . 10 19 73 134 92 124 323 Initial 280 | . 6 54 280 252 150 18 . . . 7 10 51 9 51 74 Average 105 | 2 89 265 416 292 61 48 . . 4 8 39 64 21 96 196 Maximum Alert Level 2 | . . 2 2 1 . . . . . . . . . . 1 Low Security (%) 84 | 100 100 42 . . 100 100 . . 100 100 100 100 100 100 41 Level 1 13 | . . 34 43 100 . . . . . . . . . . 58 Level 2 2 | . . 23 56 . . . . . . . . . . . . Level 3 . | . . . . . . . . . . . . . . . . Level 4 . | . . . . . . . . . . . . . . . . Level 5 . | . . . . . . . . . . . . . . . . High Security . | . . . . . . . . . . . . . . . . Max Security . | . . . . . . . . . . . . . . . . Squads Dispatched 17 | . 2 . . . 6 . . . 1 . 1 1 . . 6 Investigation 5 | . . . . . 2 . . . 1 . . . . . 2 Extermination 6 | . . . . . 3 . . . . . 1 1 . . 1 Reinforcement 6 | . 2 . . . 1 . . . . . . . . . 3 Assault . | . . . . . . . . . . . . . . . . Garrison . | . . . . . . . . . . . . . . . . Intercept . | . . . . . . . . . . . . . . . . Searches Triggered . | . . . . . . . . . . . . . . . . Construction Impeded . | . . . . . . . . . . . . . . . . Haulers Reinforced . | . . . . . . . . . . . . . . . . Active Scanning Responses . | . . . . . . . . . . . . . . . . Cargo Convoy Interrupts . | . . . . . . . . . . . . . . . . Stealth | -11 -10 -9 -8 -7 -6 -5 -5 -5 -4 -4 -3 -2 -2 -2 -1 --------- Run | Yrd Mat Mat Mat Fac Fac Fac Upp Upp Fac DSF Res Res Tes Sec Acc Distress Signals 7 | . . 3 . . 1 . . . . . 1 . . . 2 Communications Jammed 33 | . . . . . . . . . . . 5 . . . 28 Distress Signals 33 | . . . . . . . . . . . 5 . . . 28 Times Spotted 180 | . 19 32 10 1 19 1 6 . . 1 16 1 6 2 66 Peak Tracking Total 15 | . 4 9 6 1 4 1 5 . . 1 15 5 6 2 11 Tactical Retreats 29 | . 4 7 2 . 6 . 2 . . 1 2 . 1 1 3 Traps | -11 -10 -9 -8 -7 -6 -5 -5 -5 -4 -4 -3 -2 -2 -2 -1 ------- Run | Yrd Mat Mat Mat Fac Fac Fac Upp Upp Fac DSF Res Res Tes Sec Acc Traps Triggered 3 | . 1 . . . . . . . . . . . . . 2 Indirectly . | . . . . . . . . . . . . . . . . Trap Hack Attempts . | . . . . . . . . . . . . . . . . Triggered . | . . . . . . . . . . . . . . . . Disarmed . | . . . . . . . . . . . . . . . . Reprogrammed . | . . . . . . . . . . . . . . . . Reused . | . . . . . . . . . . . . . . . . Traps Extracted . | . . . . . . . . . . . . . . . . Installed . | . . . . . . . . . . . . . . . . Triggered 5 | . . . . . . . 2 3 . . . . . . . Objects Rigged 1 | . . . 1 . . . . . . . . . . . . Machines | -11 -10 -9 -8 -7 -6 -5 -5 -5 -4 -4 -3 -2 -2 -2 -1 ---------- Run | Yrd Mat Mat Mat Fac Fac Fac Upp Upp Fac DSF Res Res Tes Sec Acc Machines Disabled 6 | . . . . 1 1 . . . . . . . 1 3 . Max in Single Turn 1 | . . . . 1 1 . . . . . . . 1 1 . Garrison Access 2 | . . . . . . . . . . . . . 1 . 1 Machines Repaired . | . . . . . . . . . . . . . . . . Machines Dismantled . | . . . . . . . . . . . . . . . . Machines Sabotaged . | . . . . . . . . . . . . . . . . Overloaded Fab Kills . | . . . . . . . . . . . . . . . . Hacking | -11 -10 -9 -8 -7 -6 -5 -5 -5 -4 -4 -3 -2 -2 -2 -1 --------- Run | Yrd Mat Mat Mat Fac Fac Fac Upp Upp Fac DSF Res Res Tes Sec Acc Machines Accessed 60 | . 2 4 1 4 18 5 . 1 3 . 5 6 3 1 7 Terminals 44 | . 2 4 1 4 12 4 . . 1 . 3 4 2 1 6 Fabricators 8 | . . . . . 3 . . . 2 . 2 1 . . . Repair Stations 2 | . . . . . 1 . . . . . . 1 . . . Recycling Units 3 | . . . . . 2 1 . . . . . . . . . Scanalyzers . | . . . . . . . . . . . . . . . . Garrison Access 2 | . . . . . . . . . . . . . 1 . 1 Total Hacks 110 | . 3 9 2 4 43 8 . 1 5 . 9 9 5 2 10 Successful 70 | . 2 2 2 1 35 3 . 1 4 . 6 3 3 1 7 Failed 40 | . 1 7 . 3 8 5 . . 1 . 3 6 2 1 3 Catastrophic 5 | . 1 2 . 1 . . . . . . . . . . 1 Database Lockouts . | . . . . . . . . . . . . . . . . Manual 55 | . 3 9 2 4 20 5 . . . . 6 4 1 . 1 Terminals 80 | . 3 9 2 4 28 6 . . 2 . 5 6 4 2 9 Fabricators 14 | . . . . . 6 . . . 3 . 4 1 . . . Repair Stations 6 | . . . . . 4 . . . . . . 2 . . . Recycling Units 7 | . . . . . 5 2 . . . . . . . . . Scanalyzers . | . . . . . . . . . . . . . . . . Garrison Access 2 | . . . . . . . . . . . . . 1 . 1 Terminal Hacks 32 | . . . . . 16 2 . 1 1 . 3 . 2 1 6 Record 8 | . . . . . 3 1 . . . . . . 2 . 2 Part Schematic 3 | . . . . . 3 . . . . . . . . . . Open Door 5 | . . . . . . . . 1 . . . . . . 4 Open DSF 5 | . . . . . 2 1 . . 1 . 1 . . . . Level Access Points 2 | . . . . . 1 . . . . . 1 . . . . Branch Access Points 1 | . . . . . . . . . . . 1 . . . . Fabricator Index 1 | . . . . . 1 . . . . . . . . . . Alert Level 4 | . . . . . 3 . . . . . . . . 1 . Unreport Threat 2 | . . . . . 2 . . . . . . . . . . Locate Traps 1 | . . . . . 1 . . . . . . . . . . Fabricator Hacks 12 | . . . . . 6 . . . 3 . 2 1 . . . Network Status 1 | . . . . . . . . . . . 1 . . . . Load Schematic 5 | . . . . . 3 . . . 2 . . . . . . Build 6 | . . . . . 3 . . . 1 . 1 1 . . . Repair Station Hacks 4 | . . . . . 3 . . . . . . 1 . . . Scan Component 2 | . . . . . 1 . . . . . . 1 . . . Repair 1 | . . . . . 1 . . . . . . . . . . Refit 1 | . . . . . 1 . . . . . . . . . . Recycling Unit Hacks . | . . . . . . . . . . . . . . . . Scanalyzer . | . . . . . . . . . . . . . . . . Garrison Access Hacks 2 | . . . . . . . . . . . . . 1 . 1 Seal Access 2 | . . . . . . . . . . . . . 1 . 1 Unauthorized Hacks 20 | . 2 2 2 1 10 1 . . . . 1 1 . . . Terminals 13 | . 2 2 2 1 4 . . . . . 1 1 . . . Assimilate 2 | . . . . . 2 . . . . . . . . . . Botnet 7 | . 1 1 . 1 2 . . . . . 1 1 . . . Detonate 1 | . . . 1 . . . . . . . . . . . . Operators 3 | . 1 1 1 . . . . . . . . . . . . Fabricators . | . . . . . . . . . . . . . . . . Repair Stations 1 | . . . . . 1 . . . . . . . . . . Mechanics 1 | . . . . . 1 . . . . . . . . . . Recycling Units 6 | . . . . . 5 1 . . . . . . . . . Monitor 1 | . . . . . 1 . . . . . . . . . . Reject 2 | . . . . . 2 . . . . . . . . . . Mask 3 | . . . . . 2 1 . . . . . . . . . Scanalyzers . | . . . . . . . . . . . . . . . . Garrison Access . | . . . . . . . . . . . . . . . . Data Cores Recovered 2 | . . . . . 2 . . . . . . . . . . Used . | . . . . . . . . . . . . . . . . Hacking Detections 44 | . 2 4 . 4 12 4 . . 3 . 3 5 2 . 5 Full Trace Events 5 | . . . . . 2 . . . 1 . . . . . 2 Feedback Events . | . . . . . . . . . . . . . . . . Feedback Blocked 1 | . . . . . . . . . . . . . . . 1 Robot Schematics Acquired . | . . . . . . . . . . . . . . . . Robots Built . | . . . . . . . . . . . . . . . . Authchips . | . . . . . . . . . . . . . . . . Time . | . . . . . . . . . . . . . . . . Total Robot Build Rating . | . . . . . . . . . . . . . . . . Part Schematics Acquired 3 | . . . . . 3 . . . . . . . . . . Parts Built 10 | . . . . . 5 . . . 2 . 1 2 . . . Authchips . | . . . . . . . . . . . . . . . . Time 557 | . . . . . 324 . . . 36 . 128 69 . . . Total Part Build Rating 54 | . . . . . 22 . . . 6 . 8 18 . . . Parts Repaired 1 | . . . . . 1 . . . . . . . . . . Time 26 | . . . . . 26 . . . . . . . . . . Parts Recycled . | . . . . . . . . . . . . . . . . Recycled Matter . | . . . . . . . . . . . . . . . . Retrieved Matter . | . . . . . . . . . . . . . . . . Retrieved Components . | . . . . . . . . . . . . . . . . Parts Scanalyzed . | . . . . . . . . . . . . . . . . Part Schematics Acquired . | . . . . . . . . . . . . . . . . Parts Damaged . | . . . . . . . . . . . . . . . . Bothacking | -11 -10 -9 -8 -7 -6 -5 -5 -5 -4 -4 -3 -2 -2 -2 -1 ------------ Run | Yrd Mat Mat Mat Fac Fac Fac Upp Upp Fac DSF Res Res Tes Sec Acc Used RIF Installer . | . . . . . . . . . . . . . . . . Robots Hacked 6 | . . . . . 2 1 1 . 1 . . . 1 . . Non-combat 5 | . . . . . 2 1 1 . 1 . . . . . . Combat 1 | . . . . . . . . . . . . . 1 . . Robot Hacks Applied 6 | . . . . . 2 1 1 . 1 . . . 1 . . parse_system 1 | . . . . . . . 1 . . . . . . . . no_distress 3 | . . . . . 2 1 . . . . . . . . . find_chute 1 | . . . . . . . . . 1 . . . . . . find_scanalyzer 1 | . . . . . . . . . . . . . 1 . . Relay Couplers Released . | . . . . . . . . . . . . . . . . Fabnet Peak Effective % . | . . . . . . . . . . . . . . . . Robots Rewired . | . . . . . . . . . . . . . . . . Allies Hacked 1 | . . . . . 1 . . . . . . . . . . Hacks Repelled . | . . . . . . . . . . . . . . . . Allies | -11 -10 -9 -8 -7 -6 -5 -5 -5 -4 -4 -3 -2 -2 -2 -1 -------- Run | Yrd Mat Mat Mat Fac Fac Fac Upp Upp Fac DSF Res Res Tes Sec Acc Total Allies 1 | . . . . . 1 . . . . . . . . . . Largest Group 1 | . . . . . 1 . . . . . . . . . . Highest-Rated Group 10 | . . . . . 10 . . . . . . . . . . Highest-Rated Ally 10 | . . . . . 10 . . . . . . . . . . Total Orders . | . . . . . . . . . . . . . . . . Ally Attacks . | . . . . . . . . . . . . . . . . Total Damage . | . . . . . . . . . . . . . . . . Kills . | . . . . . . . . . . . . . . . . Allies Corrupted . | . . . . . . . . . . . . . . . . Allies Melted . | . . . . . . . . . . . . . . . . Intel | -11 -10 -9 -8 -7 -6 -5 -5 -5 -4 -4 -3 -2 -2 -2 -1 ------- Run | Yrd Mat Mat Mat Fac Fac Fac Upp Upp Fac DSF Res Res Tes Sec Acc Robot Analysis Total . | . . . . . . . . . . . . . . . . Derelict Logs Recovered 2 | . . . . . . . 1 1 . . . . . . . Drone Launches . | . . . . . . . . . . . . . . . . Drone Recoveries . | . . . . . . . . . . . . . . . . Exploration | -11 -10 -9 -8 -7 -6 -5 -5 -5 -4 -4 -3 -2 -2 -2 -1 ------------- Run | Yrd Mat Mat Mat Fac Fac Fac Upp Upp Fac DSF Res Res Tes Sec Acc Turns Passed 7556 | 75 754 395 157 269 2212 174 1020 179 132 61 375 510 298 327 618 Spaces Moved 11968 | 54 554 694 308 652 3651 183 1300 568 224 135 643 746 506 482 1268 Core 3 | 3 . . . . . . . . . . . . . . . Treads . | . . . . . . . . . . . . . . . . Legs . | . . . . . . . . . . . . . . . . Wheels 605 | 51 554 . . . . . . . . . . . . . . Hover . | . . . . . . . . . . . . . . . . Flight 11054 | . . 694 308 652 3651 183 1300 568 224 135 643 746 506 482 962 Fastest Speed 23 | 50 90 31 26 26 23 24 24 27 27 27 26 39 39 37 32 Average Speed 33 | 87 98 31 29 26 23 24 24 27 27 27 35 39 39 38 42 Slowest Speed 122 | 90 100 31 31 26 26 24 107 27 27 27 39 122 39 39 122 Overloaded Moves . | . . . . . . . . . . . . . . . . Propulsion Burnouts . | . . . . . . . . . . . . . . . . Robots Hopped 73 | . . 12 3 6 20 1 1 . 2 . 8 3 7 4 6 Cave-ins Triggered 1 | . . . . . 1 . . . . . . . . . . Teleports 38 | . . . . . . . . . . . . . . . 38 Microwarps 22 | . . . . . . . . . . . . . . . 22 Exploration Rate (%) 40 | 5 73 56 33 19 56 3 90 59 8 95 17 22 57 15 35 Regions Visited 15 Branch Regions 4 Pre-discovered Areas . | . . . . . . . . . . . . . . . . Known Exits Taken 13 | . 1 1 1 1 1 1 1 1 1 . 1 1 1 1 . Unknown Exits Taken 1 | 1 . . . . . . . . . . . . . . . Scrap Searched 1 | . . . . . . . 1 . . . . . . . . Spaces Dug 210 | . . . 4 17 63 14 9 1 3 3 17 26 6 6 41 Terrain Destroyed 210 | . . . 4 17 63 14 9 1 3 3 17 26 6 6 41 Melee 210 | . . . 4 17 63 14 9 1 3 3 17 26 6 6 41 Projectile . | . . . . . . . . . . . . . . . . AOE . | . . . . . . . . . . . . . . . . Terrain Rammed . | . . . . . . . . . . . . . . . . Walls Destroyed . | . . . . . . . . . . . . . . . . Machines Disabled . | . . . . . . . . . . . . . . . . Actions | -11 -10 -9 -8 -7 -6 -5 -5 -5 -4 -4 -3 -2 -2 -2 -1 --------- Run | Yrd Mat Mat Mat Fac Fac Fac Upp Upp Fac DSF Res Res Tes Sec Acc Total 14665 | 74 702 827 344 698 4812 279 1979 591 288 151 744 916 588 590 1082 Wait 2378 | 4 75 99 1 11 1030 67 661 21 54 6 72 118 72 75 12 Move 11527 | 53 553 670 301 639 3610 180 1297 567 219 134 627 740 492 473 972 Hop 68 | . . 11 3 6 20 1 1 . 2 . 7 2 6 4 5 Pick Up 52 | 8 7 8 1 5 11 3 1 . 1 . 1 1 2 3 . Fast Attach 56 | 7 3 . 4 . 7 . . 1 3 2 7 10 1 4 7 Attach 29 | . . 3 . 3 7 4 1 . 1 . . 2 1 1 6 Detach 16 | . . . . 1 3 1 1 . 2 . . 2 1 2 3 Swap 53 | . 3 7 11 3 10 2 2 . . 1 1 4 3 2 4 Drop 86 | . 14 10 8 4 17 2 . 1 2 2 7 9 2 7 1 Fire 83 | 2 47 19 10 . 2 1 1 . . . . . 1 . . Melee 299 | . . . 5 26 95 18 14 1 4 6 22 28 7 19 54 Ram . | . . . . . . . . . . . . . . . . Kick . | . . . . . . . . . . . . . . . . Crush . | . . . . . . . . . . . . . . . . Escape Stasis 18 | . . . . . . . . . . . . . . . 18 Rewire . | . . . . . . . . . . . . . . . . Trap . | . . . . . . . . . . . . . . . . Miscellaneous . | . . . . . . . . . . . . . . . . Route ------- -11/Scrapyard -10/Materials (discovered 4 exits: *Mat x3 / *Min) -9/Materials -8/Materials -7/Factory -6/Factory (discovered 5 exits: *Fac x4 / [*Low]) -5/Factory (discovered 2 exits: *Upp / DSF) -5/Upper Caves -5/Upper Caves -4/Factory (discovered 2 exits: Arm / DSF) -4/DSF -3/Research (discovered 5 exits: *Res x3 / Qua x2) -2/Research -2/Testing -2/Section 7 -1/Access (discovered 2 exits: *Sur / *Com) To Epsilon Eridani History --------- Turn | Location | Event 5 | -11/Scrapyard | Discovered new exit (range 15) 76 | -11/Scrapyard | Entered Materials 309 | -10/Materials | Build established: Mutant 405 | -10/Materials | Discovered new exit (range 4) 407 | -10/Materials | Identified exit to Materials 689 | -10/Materials | Discovered new exit (range 14) 690 | -10/Materials | Discovered exit to Materials (range 10) 736 | -10/Materials | Identified exit to Mines 785 | -10/Materials | Discovered exit to Materials (range 9) 830 | -10/Materials | Entered another Materials area 830 | -9/Materials | Evolved 2 slots: Propulsion x2 1137 | -9/Materials | Build established: Sprinter 1224 | -9/Materials | Discovered new exit (range 6) 1225 | -9/Materials | Identified exit to Materials 1225 | -9/Materials | Entered another Materials area 1225 | -8/Materials | Evolved 2 slots: Utility x2 1379 | -8/Materials | Discovered new exit (range 6) 1380 | -8/Materials | Identified exit to Factory 1382 | -8/Materials | Entered Factory 1382 | -7/Factory | Evolved 2 slots: Power x1, Propulsion x1 1644 | -7/Factory | Discovered new exit (range 7) 1645 | -7/Factory | Identified exit to Factory 1651 | -7/Factory | Entered another Factory area 1651 | -6/Factory | Evolved 2 slots: Utility x2 1847 | -6/Factory | Repaired Structural Scanner 1999 | -6/Factory | Fabricated Cld. Antigrav System? 2104 | -6/Factory | Fabricated Cesium-ion Thruster (x2) 2146 | -6/Factory | Build established: Hacker-Scout 2868 | -6/Factory | Fabricated System Restoration Module? 3513 | -6/Factory | Discovered new exit (range 12) 3573 | -6/Factory | Crushed by falling debris 3573 | -6/Factory | System corruption reached 10% 3604 | -6/Factory | Lost 3 parts (1n1u1w) 3667 | -6/Factory | Build established: Hacker-Sprinter 3798 | -6/Factory | Identified exit to Factory 3863 | -6/Factory | Entered another Factory area 3863 | -5/Factory | Evolved 2 slots: Utility x2 3954 | -5/Factory | Discovered new exit (range 3) 3955 | -5/Factory | Identified exit to Upper Caves 3955 | -5/Factory | Identified exit to DSF 4037 | -5/Factory | Entered Upper Caves 4172 | -5/Upper Caves | Build established: Hacker-Ninja 4500 | -5/Upper Caves | Learned Factory stockpile data 4510 | -5/Upper Caves | Attracted the attention of an 0b10 checkpoint 5054 | -5/Upper Caves | Discovered new exit (range 13) 5057 | -5/Upper Caves | Identified exit to Upper Caves 5057 | -5/Upper Caves | Entered another Upper Caves area 5231 | -5/Upper Caves | Discovered new exit (range 9) 5236 | -5/Upper Caves | Identified exit to Factory 5236 | -5/Upper Caves | Entered Factory 5236 | -4/Factory | Evolved 2 slots: Utility x2 5237 | -4/Factory | Identified exit to Armory 5327 | -4/Factory | Fabricated Scythe (x2) 5368 | -4/Factory | Identified exit to DSF 5368 | -4/Factory | Entered DSF 5390 | -4/DSF | Additional patrols routed to DSF 5415 | -4/DSF | Discovered new exit (range 14) 5429 | -4/DSF | Identified exit to Research 5429 | -4/DSF | Entered Research 5429 | -3/Research | Evolved 2 slots: Propulsion x1, Utility x1 5455 | -3/Research | Found Prototype Hackware 5455 | -3/Research | Identified Exp. System Shield 5567 | -3/Research | Identified exit to Research 5567 | -3/Research | Identified exit to Quarantine 5644 | -3/Research | Fabricated Adv. Component Analysis Suite? 5789 | -3/Research | Spotted B-86 Titan 5804 | -3/Research | Entered another Research area 5804 | -2/Research | Evolved 2 slots: Utility x2 5940 | -2/Research | Fabricated Quantum Reactor (x2) 6062 | -2/Research | Spotted B-90 Cyclops 6294 | -2/Research | Discovered new exit (range 20) 6313 | -2/Research | Identified exit to Testing 6314 | -2/Research | Entered Testing 6473 | -2/Testing | Found Prototype Device 6476 | -2/Testing | Identified Exp. Focal Shield 6485 | -2/Testing | Spotted Striker 6486 | -2/Testing | Spotted Striker 6572 | -2/Testing | Spotted Fortress 6611 | -2/Testing | Discovered new exit (range 6) 6612 | -2/Testing | Identified exit to Section 7 6612 | -2/Testing | Entered Section 7 6620 | -2/Section 7 | Found Alien Artifact 6620 | -2/Section 7 | Identified Microwarp Drive 6642 | -2/Section 7 | Found Alien Artifact 6642 | -2/Section 7 | Identified Integrated Dissipator 6642 | -2/Section 7 | Installed Integrated Dissipator, increased core heat dissipation (+20) 6743 | -2/Section 7 | Spotted S7 Guard 6757 | -2/Section 7 | Discovered new exit (range 8) 6760 | -2/Section 7 | Identified exit to Access 6762 | -2/Section 7 | Build established: Hacker-Mutant 6910 | -2/Section 7 | Found Alien Artifact 6939 | -2/Section 7 | Entered Access 6939 | -1/Access | Evolved 2 slots: Propulsion x1, Utility x1 6939 | -1/Access | Identified Navigation Efficiency Matrix 6939 | -1/Access | Installed Navigation Efficiency Matrix, process failed with unexpected side effects 7031 | -1/Access | Spotted B-99 Colossus 7298 | -1/Access | Spotted B-99 Colossus 7321 | -1/Access | Lost 5 parts (1p2n1u1w) 7368 | -1/Access | Discovered new exit (range 7) 7369 | -1/Access | Identified exit to Command 7533 | -1/Access | Discovered new exit (range 7) 7557 | -1/Access | System corruption reached 10% 7557 | -1/Access | Identified exit to Surface 7557 | *** | Escaped! Last Messages --------------- 07532_ Connecting with Terminal... >>Open(Door) Sealed Barrier opened. 07532_ ALERT: Suspicious activity at Terminal A001. Dispatching Investigation squad. 07533_ The Access Shell folds into the floor. 07533_ EXIT=FOUND 07534_ Microwarped (distance 8). 07534_ Slug penetrates Sealed Heavy Doors. 07534_ Penetrated by Slug. 07536_ Navigation matrix triggers involuntary quantum shift. 07556_ Penetrated by Slug. 07556_ P-80 Master resets H-88 Terminator, system corruption cleaned. 07556_ Lgt. Quantum Reactor destroyed. 07556_ Slug penetrates Sealed Heavy Doors. 07556_ Penetrated by Slug. 07557_ EXIT=IDENTIFIED: SURFACE [Achievement: Epsilon Run] Map ----- +----------------------------------------------------+ | #?????# ##### """ # #?????????????????????? | | ??????# " # # #?????????????????????? | | ??????# ##### # #?????????????????????? | | ??????# #???# # #?????????????????????? | | ??????# #???# # #?????????????????????? | | ??????# #???########## #?????????????????????? | | ??????# #????????????# #??????##########?????? | | ??????+ #????????????# #??????# " #?????? | | ??????# #????????????# #??????# """ #?????? | | ??????# ?????????????# #??????#! """ #?????? | | ??????# ?????????????? ??????# " +?????? | | ??????# ?????????????? ??????# #?????? | | ??????# ?????????????? ??????# #?????? | | ??????? ?????????????? ????????#! #?????? | | ??????? ?????????????????????????# #?????? | | ??????? #########????????????????# #?????? | | ?????????# #????????????????#####"#### #??? | | ?????????# ###????????????????# #??? | | ?????????# " #????????????????# #??? | | ?????????# | ###????????????????# ########??? | | ?????????# ###""""""""""#?????# ##"######## | | ?????????+ " # #?????# # !! | | ?????????# ### #?????# " !! | | ?????????# #?# #?????# # | | ?????????# #?# "" #?????# # | | ?????????# #?# "@ #?????# # | | ?????????# #?# #?????# # | | ?????????#########?# #?????# + | | ???????????????????# #?????# #"######### | | ??????????????????## ##????# # # | | ??????????????????# h #????# # # | | ??????????????????##""h ##????# # # | | ???????????????????#"" #?????# # # | | ???????????????????#"" p g#?????# # # | | ???????????????????#T p p#?????#H + # | | ???????????????????#"" g#?????# # # | | ???????????????????#"" p#?????# # # | | ???????????????????#"" g####### ########### | | ?????????????? u =%! | | ????????????? wk k | | ????????????? #######################/###########+ | | ???????????????????????????????????# # | | ???????????????????????????????????# * !! # | | ???????????????????????????????????# !] # " | | ???????????????????????????????????# !] # " | | ??????????????????????????????????## # """ | | ??????????????????????????????????#" # """ | | ??????????????????????????????????## " "" # " | | ???????????????????????????????????# "R"" # " | | ???????????????????????????????????# """ # | +----------------------------------------------------+ Best States ------------- Heat Dissipation 80 Energy Generation 45 Energy Capacity 590 Matter Stores 300 Matter Capacity 300 Sight Range 16 Robot Scan Range 16 Terrain Scan Range 20 Terrain Scan Density 210 Jamming Range 14 Additional Mass Support 16 Resistance: KI 30 Evasion (%) 76 Melee Accuracy 8 Offensive Hacking 42 Defensive Hacking 16 Item Schematics ----------------- Cesium-ion Thruster | -6/Factory | Hacked System Restoration Module | -6/Factory | Hacked Scythe | -6/Factory | Hacked Robot Schematics ------------------ None Fabricated ------------ Cld. Antigrav System | x1 | -6/Factory | Preloaded Cesium-ion Thruster | x2 | -6/Factory System Restoration Module | x2 | -6/Factory Scythe | x2 | -4/Factory Adv. Component Analysis Suite | x1 | -3/Research | Preloaded Quantum Reactor | x2 | -2/Research | Preloaded Alien Tech Used ----------------- Microwarp Drive Integrated Dissipator Navigation Efficiency Matrix Achievements -------------- Alien Tech Dodgeball, But With Guns Epsilon Run Just What I Needed Knowing Is Half The Battle Nope Omniscient Cartographer Production Line Rockin' Loadout Slippery One Subspace Traveler Challenges ------------ None Game ------ Seed CargoMultitargetingExpander Manual? 0 Play Time 02:47:54 Cumulative 33.2 hours Start 2024.03.27 @ 13:50:20 End 2024.03.27 @ 17:43:20 Sessions 3 Manual Loads 0 Difficulty Rogue Special Mode None Game No. 43 Rogue 43 Adventurer 0 Explorer 0 Win Type 0 Total 1 Types 1/0/0/0/0/0/0/0/0 Lore% 25 Gallery% 32 Achievement% 32 Wizard Run 0 Options --------- Layout 2 ASCII 0 Keyboard 1 Movement Numpad Keybinds 0 Fullscreen 1 Font 16/SmallcapsGlow Map View 55x47 Zoom Use 0% Tactical HUD 1 Map Filters NONE Filters NONE Steam 1 RUN: 959abc9a-c6b9-4706-b23f-bab20e5fc500